[Event "2026 European Womens Championship"]
[Site "Batumi, GE"]
[Date "2026.05.28"]
[Round "4"]
[White "Giorgadze, Mariam Ere"]
[Black "Mgeladze, Kesaria"]
[Result "0-1"]
[Board "61"]
[TimeControl "5400+30"]
[WhiteFideId "13636839"]
[BlackFideId "13621130"]
[WhiteElo "1909"]
[BlackElo "2147"]
[BlackTitle "WIM"]
[WhiteClock "0:01:10"]
[BlackClock "0:12:36"]
[Variant "Standard"]

1. e4 {[%clk 1:30:59]}  c5 {[%clk 1:30:55]} 2. Nf3 {[%clk 1:31:26]}  d6 {[%clk 1:31:18]} 3. d4 {[%clk 1:31:52]}  cxd4 {[%clk 1:31:43]}
4. Nxd4 {[%clk 1:32:18]}  Nf6 {[%clk 1:32:08]} 5. Nc3 {[%clk 1:32:44]}  a6 {[%clk 1:32:34]} 6. Bg5 {[%clk 1:33:07]}  e6 {[%clk 1:32:37]}
7. f4 {[%clk 1:28:58]}  h6 {[%clk 1:32:58]} 8. Bh4 {[%clk 1:28:46]}  Nbd7 {[%clk 1:33:14]} 9. Qf3 {[%clk 1:28:41]}  e5 {[%clk 1:32:32]}
10. Bxf6 {[%clk 1:22:52]}  Nxf6 {[%clk 1:28:26]} 11. Nb3 {[%clk 1:17:14]}  Be7 {[%clk 1:20:44]} 12. f5 {[%clk 1:04:45]}  b5 {[%clk 1:19:09]}
13. a3 {[%clk 0:58:27]}  Bb7 {[%clk 1:16:14]} 14. O-O-O {[%clk 0:57:22]}  Rc8 {[%clk 1:13:46]} 15. Nd5 {[%clk 0:49:16]}  Nxd5 {[%clk 1:04:46]}
16. exd5 {[%clk 0:49:37]}  Qb6 {[%clk 1:02:58]} 17. h4 {[%clk 0:41:41]}  Rb8 {[%clk 0:50:23]} 18. Qd3 {[%clk 0:29:22]}  Bc8 {[%clk 0:48:26]}
19. g4 {[%clk 0:28:39]}  Bd7 {[%clk 0:40:21]} 20. Be2 {[%clk 0:20:40]}  a5 {[%clk 0:38:48]} 21. Nd2 {[%clk 0:20:31]}  b4 {[%clk 0:34:25]}
22. Qa6 {[%clk 0:14:18]}  Qc5 {[%clk 0:18:55]} 23. axb4 {[%clk 0:07:25]}  Qxb4 {[%clk 0:18:04]} 24. b3 {[%clk 0:04:36]}  e4 {[%clk 0:12:06]}
25. Qc4 {[%clk 0:02:49]}  Qa3+ {[%clk 0:12:01]} 26. Kb1 {[%clk 0:03:17]}  Bf6 {[%clk 0:12:26]} 27. c3 {[%clk 0:03:00]}  O-O {[%clk 0:12:05]}
28. g5 {[%clk 0:00:48]}  Be5 {[%clk 0:12:28]} 29. Qxe4 {[%clk 0:00:39]}  Rxb3+ {[%clk 0:11:43]} 30. Nxb3 {[%clk 0:00:49]}  Qxb3+ {[%clk 0:12:09]}
31. Kc1 {[%clk 0:01:10]}  Qxc3+ {[%clk 0:12:36]} 0-1

[Event "2026 European Womens Championship"]
[Site "Batumi, GE"]
[Date "2026.05.28"]
[Round "4"]
[White "Rekhviashvili, Mariam"]
[Black "Mamedjarova, Zeinab"]
[Result "0-1"]
[Board "62"]
[TimeControl "5400+30"]
[WhiteFideId "13635859"]
[BlackFideId "13401521"]
[WhiteElo "1836"]
[BlackElo "2137"]
[BlackTitle "WGM"]
[WhiteClock "0:14:58"]
[BlackClock "0:17:54"]
[Variant "Standard"]

1. e4 {[%clk 1:30:48]}  d5 {[%clk 1:29:24]} 2. exd5 {[%clk 1:30:38]}  Qxd5 {[%clk 1:29:49]} 3. Nc3 {[%clk 1:30:49]}  Qd8 {[%clk 1:30:15]}
4. d4 {[%clk 1:31:09]}  Nf6 {[%clk 1:30:40]} 5. Nf3 {[%clk 1:31:20]}  e6 {[%clk 1:29:45]} 6. Bd3 {[%clk 1:27:18]}  Be7 {[%clk 1:29:52]}
7. Bf4 {[%clk 1:22:15]}  O-O {[%clk 1:30:03]} 8. Qd2 {[%clk 1:20:59]}  b6 {[%clk 1:22:57]} 9. O-O-O {[%clk 1:12:23]}  Bb7 {[%clk 1:23:21]}
10. Rhe1 {[%clk 1:07:37]}  Nbd7 {[%clk 1:05:21]} 11. Ng5 {[%clk 0:56:30]}  c5 {[%clk 0:59:46]} 12. Bc4 {[%clk 0:50:22]}  cxd4 {[%clk 0:41:46]}
13. Qxd4 {[%clk 0:49:50]}  Nd5 {[%clk 0:37:01]} 14. Nxd5 {[%clk 0:29:57]}  Bxg5 {[%clk 0:33:42]} 15. Bxg5 {[%clk 0:27:11]}  Qxg5+ {[%clk 0:34:09]}
16. f4 {[%clk 0:27:12]}  Qd8 {[%clk 0:33:25]} 17. Ne3 {[%clk 0:25:19]}  Nf6 {[%clk 0:26:44]} 18. Qe5 {[%clk 0:25:19]}  Qb8 {[%clk 0:20:20]}
19. Qg5 {[%clk 0:23:38]}  Qc7 {[%clk 0:16:30]} 20. f5 {[%clk 0:21:50]}  Qc5 {[%clk 0:09:52]} 21. b4 {[%clk 0:16:42]}  Qxb4 {[%clk 0:06:16]}
22. fxe6 {[%clk 0:17:01]}  Qa3+ {[%clk 0:05:48]} 23. Kb1 {[%clk 0:17:25]}  Ne4 {[%clk 0:02:25]} 24. exf7+ {[%clk 0:15:44]}  Kh8 {[%clk 0:02:54]}
25. Qe5 {[%clk 0:13:05]}  Nc3+ {[%clk 0:01:16]} 26. Ka1 {[%clk 0:13:31]}  Nxd1 {[%clk 0:01:22]} 27. Rxd1 {[%clk 0:13:25]}  Rad8 {[%clk 0:01:37]}
28. Rf1 {[%clk 0:07:39]}  Qd6 {[%clk 0:01:46]} 29. Qg5 {[%clk 0:07:44]}  h6 {[%clk 0:01:02]} 30. Qf4 {[%clk 0:04:55]}  Qxf4 {[%clk 0:00:35]}
31. Rxf4 {[%clk 0:05:18]}  g6 {[%clk 0:00:55]} 32. Ng4 {[%clk 0:05:16]}  Bd5 {[%clk 0:00:50]} 33. Bd3 {[%clk 0:02:52]}  Rxf7 {[%clk 0:00:43]}
34. Rd4 {[%clk 0:02:22]}  Rfd7 {[%clk 0:00:35]} 35. Ne5 {[%clk 0:02:20]}  Rd6 {[%clk 0:00:54]} 36. Nxg6+ {[%clk 0:02:22]}  Kg7 {[%clk 0:01:13]}
37. Nf4 {[%clk 0:01:41]}  Bf7 {[%clk 0:01:31]} 38. Re4 {[%clk 0:01:57]}  Re8 {[%clk 0:00:51]} 39. Ra4 {[%clk 0:02:01]}  Re7 {[%clk 0:00:36]}
40. Nh3 {[%clk 0:01:54]}  Bg6 {[%clk 0:00:34]} 41. Rg4 {[%clk 0:01:35]}  h5 {[%clk 0:26:43]} 42. Rg3 {[%clk 0:26:11]}  Kh6 {[%clk 0:24:32]}
43. Nf4 {[%clk 0:21:00]}  Bxd3 {[%clk 0:24:40]} 44. Nxd3 {[%clk 0:20:51]}  Re2 {[%clk 0:23:26]} 45. Kb1 {[%clk 0:20:48]}  Rc6 {[%clk 0:23:34]}
46. Nb4 {[%clk 0:17:27]}  Rg6 {[%clk 0:21:33]} 47. Rc3 {[%clk 0:16:34]}  Rexg2 {[%clk 0:21:37]} 48. Rh3 {[%clk 0:15:45]}  Kg5 {[%clk 0:19:42]}
49. Nd3 {[%clk 0:15:56]}  Rc6 {[%clk 0:16:30]} 50. Rxh5+ {[%clk 0:14:53]}  Kxh5 {[%clk 0:16:49]} 51. Nf4+ {[%clk 0:15:17]}  Kg4 {[%clk 0:17:13]}
52. Nxg2 {[%clk 0:15:42]}  Re6 {[%clk 0:17:27]} 53. Kc1 {[%clk 0:15:13]}  Re2 {[%clk 0:17:32]} 54. h3+ {[%clk 0:14:58]}  Kg3 {[%clk 0:17:54]} 0-1

[Event "2026 European Womens Championship"]
[Site "Batumi, GE"]
[Date "2026.05.28"]
[Round "4"]
[White "Dwilewicz, Katarzyna"]
[Black "Radikovic, Anamarija"]
[Result "0-1"]
[Board "63"]
[TimeControl "5400+30"]
[WhiteFideId "1148486"]
[BlackFideId "14546264"]
[WhiteElo "2131"]
[BlackElo "1974"]
[WhiteTitle "WIM"]
[BlackTitle "WFM"]
[WhiteClock "0:10:07"]
[BlackClock "0:07:12"]
[Variant "Standard"]

1. e4 {[%clk 1:30:54]}  c5 {[%clk 1:30:56]} 2. Nf3 {[%clk 1:31:18]}  e6 {[%clk 1:31:20]} 3. d4 {[%clk 1:31:08]}  cxd4 {[%clk 1:31:44]}
4. Nxd4 {[%clk 1:31:33]}  a6 {[%clk 1:32:07]} 5. Bd3 {[%clk 1:31:23]}  Bc5 {[%clk 1:32:16]} 6. Nb3 {[%clk 1:31:29]}  Ba7 {[%clk 1:32:39]}
7. Qe2 {[%clk 1:31:53]}  Nc6 {[%clk 1:32:54]} 8. Nc3 {[%clk 1:30:44]}  Nge7 {[%clk 1:33:08]} 9. Be3 {[%clk 1:27:48]}  O-O {[%clk 1:23:47]}
10. O-O-O {[%clk 1:25:48]}  b5 {[%clk 1:16:46]} 11. f4 {[%clk 1:19:33]}  b4 {[%clk 1:09:58]} 12. Na4 {[%clk 1:19:48]}  Qc7 {[%clk 1:09:57]}
13. e5 {[%clk 1:13:07]}  Nd5 {[%clk 1:03:25]} 14. Bxa7 {[%clk 1:07:39]}  Qxa7 {[%clk 0:53:37]} 15. g3 {[%clk 0:59:26]}  a5 {[%clk 0:47:22]}
16. Nbc5 {[%clk 0:45:08]}  Rd8 {[%clk 0:36:21]} 17. Be4 {[%clk 0:35:53]}  Nce7 {[%clk 0:29:21]} 18. Qh5 {[%clk 0:27:09]}  f5 {[%clk 0:27:05]}
19. Bxd5 {[%clk 0:27:07]}  Nxd5 {[%clk 0:25:10]} 20. g4 {[%clk 0:26:41]}  Bb7 {[%clk 0:19:54]} 21. gxf5 {[%clk 0:25:43]}  Ne3 {[%clk 0:13:23]}
22. Rhg1 {[%clk 0:09:23]}  Nxf5 {[%clk 0:13:10]} 23. Qg5 {[%clk 0:09:27]}  h6 {[%clk 0:07:59]} 24. Qg6 {[%clk 0:09:43]}  Bf3 {[%clk 0:06:35]}
25. Rd3 {[%clk 0:06:26]}  Be2 {[%clk 0:04:43]} 26. Rh3 {[%clk 0:04:08]}  h5 {[%clk 0:03:23]} 27. Ne4 {[%clk 0:03:02]}  Bg4 {[%clk 0:02:22]}
28. Nf6+ {[%clk 0:01:29]}  Kf8 {[%clk 0:02:46]} 29. Nh7+ {[%clk 0:01:24]}  Ke7 {[%clk 0:01:45]} 30. Qg5+ {[%clk 0:01:32]}  Ke8 {[%clk 0:01:34]}
31. Rxg4 {[%clk 0:01:21]}  hxg4 {[%clk 0:01:57]} 32. Nf6+ {[%clk 0:01:05]}  Kf7 {[%clk 0:02:05]} 33. Qh5+ {[%clk 0:00:56]}  Ke7 {[%clk 0:01:39]}
34. Qxg4 {[%clk 0:00:59]}  Qf2 {[%clk 0:01:03]} 35. Rd3 {[%clk 0:00:42]}  Rac8 {[%clk 0:01:06]} 36. c3 {[%clk 0:00:49]}  bxc3 {[%clk 0:00:45]}
37. Nxc3 {[%clk 0:01:01]}  Qf1+ {[%clk 0:01:05]} 38. Rd1 {[%clk 0:01:17]}  Qf2 {[%clk 0:00:48]} 39. Qg5 {[%clk 0:00:50]}  Qh4 {[%clk 0:00:58]}
40. Nfd5+ {[%clk 0:00:45]}  Kf7 {[%clk 0:01:05]} 41. Qxh4 {[%clk 0:29:29]}  Nxh4 {[%clk 0:30:25]} 42. Ne3 {[%clk 0:26:54]}  Ng6 {[%clk 0:27:22]}
43. Rd4 {[%clk 0:25:21]}  Ke7 {[%clk 0:25:20]} 44. Nc4 {[%clk 0:20:42]}  Rc5 {[%clk 0:23:08]} 45. Nd6 {[%clk 0:19:51]}  Rb8 {[%clk 0:19:17]}
46. a3 {[%clk 0:20:06]}  Nh4 {[%clk 0:18:15]} 47. Ra4 {[%clk 0:19:09]}  Rf8 {[%clk 0:14:01]} 48. Nb7 {[%clk 0:18:25]}  Rc7 {[%clk 0:14:22]}
49. Nxa5 {[%clk 0:18:50]}  Ng2 {[%clk 0:14:33]} 50. Kd2 {[%clk 0:12:34]}  Nxf4 {[%clk 0:14:02]} 51. Re4 {[%clk 0:12:43]}  g5 {[%clk 0:11:13]}
52. b4 {[%clk 0:08:09]}  Rh8 {[%clk 0:10:51]} 53. b5 {[%clk 0:08:31]}  Rxh2+ {[%clk 0:11:08]} 54. Ne2 {[%clk 0:08:57]}  Rc5 {[%clk 0:06:16]}
55. a4 {[%clk 0:08:35]}  Nxe2 {[%clk 0:05:46]} 56. Rxe2 {[%clk 0:09:00]}  Rd5+ {[%clk 0:06:09]} 57. Ke1 {[%clk 0:09:18]}  Rxe2+ {[%clk 0:06:32]}
58. Kxe2 {[%clk 0:09:45]}  Rxe5+ {[%clk 0:06:53]} 59. Kf3 {[%clk 0:09:43]}  Rf5+ {[%clk 0:07:10]} 60. Kg4 {[%clk 0:10:07]}  Rf4+ {[%clk 0:07:12]} 0-1

[Event "2026 European Womens Championship"]
[Site "Batumi, GE"]
[Date "2026.05.28"]
[Round "4"]
[White "Vidic, Teja"]
[Black "Avelino, Camila Biscaya"]
[Result "1-0"]
[Board "64"]
[TimeControl "5400+30"]
[WhiteFideId "14605511"]
[BlackFideId "1938975"]
[WhiteElo "2123"]
[BlackElo "1937"]
[WhiteTitle "WIM"]
[BlackTitle "WFM"]
[WhiteClock "0:48:47"]
[BlackClock "0:19:39"]
[Variant "Standard"]

1. e4 {[%clk 1:30:57]}  c5 {[%clk 1:29:57]} 2. Nf3 {[%clk 1:31:17]}  d6 {[%clk 1:30:11]} 3. d4 {[%clk 1:31:35]}  cxd4 {[%clk 1:30:33]}
4. Nxd4 {[%clk 1:32:00]}  Nf6 {[%clk 1:30:54]} 5. Nc3 {[%clk 1:32:21]}  Nc6 {[%clk 1:30:56]} 6. Bg5 {[%clk 1:32:35]}  e6 {[%clk 1:11:58]}
7. Qd3 {[%clk 1:32:59]}  Bd7 {[%clk 1:09:46]} 8. O-O-O {[%clk 1:32:42]}  Be7 {[%clk 0:53:43]} 9. Ndb5 {[%clk 1:32:43]}  d5 {[%clk 0:43:57]}
10. exd5 {[%clk 1:10:41]}  Nb4 {[%clk 0:39:55]} 11. Qg3 {[%clk 1:07:44]}  Nfxd5 {[%clk 0:25:48]} 12. Bxe7 {[%clk 1:03:20]}  Qxe7 {[%clk 0:25:51]}
13. Nxd5 {[%clk 1:00:53]}  Nxd5 {[%clk 0:24:10]} 14. Qxg7 {[%clk 0:59:50]}  Rf8 {[%clk 0:21:35]} 15. Qg3 {[%clk 0:54:05]}  Qc5 {[%clk 0:21:14]}
16. Rxd5 {[%clk 0:49:05]}  exd5 {[%clk 0:21:39]} 17. Nc7+ {[%clk 0:49:21]}  Ke7 {[%clk 0:22:03]} 18. Nxa8 {[%clk 0:49:03]}  Rxa8 {[%clk 0:22:28]}
19. Bd3 {[%clk 0:48:39]}  Rh8 {[%clk 0:19:39]} 20. Qe5+ {[%clk 0:48:47]} 1-0

[Event "2026 European Womens Championship"]
[Site "Batumi, GE"]
[Date "2026.05.28"]
[Round "4"]
[White "Ivekovic, Tihana"]
[Black "Rusitashvili, Tea"]
[Result "1-0"]
[Board "65"]
[TimeControl "5400+30"]
[WhiteFideId "14517825"]
[BlackFideId "13640771"]
[WhiteElo "2119"]
[BlackElo "1929"]
[WhiteTitle "WFM"]
[BlackTitle "WCM"]
[WhiteClock "0:17:09"]
[BlackClock "0:19:37"]
[Variant "Standard"]

1. e4 {[%clk 1:30:59]}  c5 {[%clk 1:30:55]} 2. Nf3 {[%clk 1:31:23]}  Nc6 {[%clk 1:31:19]} 3. c3 {[%clk 1:31:44]}  Nf6 {[%clk 1:31:43]}
4. e5 {[%clk 1:32:05]}  Nd5 {[%clk 1:32:08]} 5. Bc4 {[%clk 1:32:19]}  Nb6 {[%clk 1:32:32]} 6. Bb3 {[%clk 1:32:44]}  d5 {[%clk 1:32:56]}
7. exd6 {[%clk 1:32:40]}  Qxd6 {[%clk 1:33:20]} 8. O-O {[%clk 1:31:35]}  Be6 {[%clk 1:33:44]} 9. Bxe6 {[%clk 1:30:47]}  Qxe6 {[%clk 1:34:08]}
10. a4 {[%clk 1:31:04]}  Qd7 {[%clk 1:34:02]} 11. a5 {[%clk 1:30:12]}  Nd5 {[%clk 1:34:26]} 12. a6 {[%clk 1:29:57]}  b6 {[%clk 1:34:52]}
13. d4 {[%clk 1:29:26]}  cxd4 {[%clk 1:33:31]} 14. Nxd4 {[%clk 1:29:21]}  e6 {[%clk 1:32:50]} 15. Nxc6 {[%clk 1:27:36]}  Qxc6 {[%clk 1:33:11]}
16. Qg4 {[%clk 1:27:17]}  Be7 {[%clk 1:23:31]} 17. Qxg7 {[%clk 1:11:37]}  O-O-O {[%clk 1:22:39]} 18. Qg3 {[%clk 1:08:59]}  Rhg8 {[%clk 1:16:21]}
19. Qf3 {[%clk 1:09:09]}  h5 {[%clk 1:15:29]} 20. Be3 {[%clk 1:02:09]}  Rg6 {[%clk 1:11:54]} 21. c4 {[%clk 0:59:35]}  Nb4 {[%clk 1:11:34]}
22. Qxc6+ {[%clk 0:57:59]}  Nxc6 {[%clk 1:12:02]} 23. Nc3 {[%clk 0:30:43]}  Rg4 {[%clk 1:04:12]} 24. Ra4 {[%clk 0:29:08]}  Bb4 {[%clk 0:56:15]}
25. Nb5 {[%clk 0:21:50]}  Rxc4 {[%clk 0:51:32]} 26. b3 {[%clk 0:22:16]}  Rg4 {[%clk 0:48:24]} 27. h3 {[%clk 0:22:39]}  Re4 {[%clk 0:40:59]}
28. Rc1 {[%clk 0:22:36]}  Kd7 {[%clk 0:40:27]} 29. Rd1+ {[%clk 0:22:14]}  Kc8 {[%clk 0:35:32]} 30. Nxa7+ {[%clk 0:18:12]}  Nxa7 {[%clk 0:32:18]}
31. Rxd8+ {[%clk 0:18:36]}  Kxd8 {[%clk 0:32:23]} 32. Bxb6+ {[%clk 0:19:00]}  Kc8 {[%clk 0:32:01]} 33. Bxa7 {[%clk 0:19:24]}  Re1+ {[%clk 0:31:51]}
34. Kh2 {[%clk 0:19:49]}  Bd6+ {[%clk 0:32:15]} 35. g3 {[%clk 0:20:11]}  Rb1 {[%clk 0:31:08]} 36. Be3 {[%clk 0:20:17]}  Kb8 {[%clk 0:31:09]}
37. a7+ {[%clk 0:20:31]}  Ka8 {[%clk 0:31:35]} 38. Rc4 {[%clk 0:20:54]}  Kb7 {[%clk 0:30:01]} 39. Rc8 {[%clk 0:20:24]}  Ra1 {[%clk 0:28:21]}
40. Rh8 {[%clk 0:20:14]}  Ra3 {[%clk 0:25:35]} 41. b4 {[%clk 0:20:01]}  Ra4 {[%clk 0:22:44]} 42. Rxh5 {[%clk 0:16:46]}  Rxb4 {[%clk 0:19:37]}
43. Rh7 {[%clk 0:17:09]} 1-0

[Event "2026 European Womens Championship"]
[Site "Batumi, GE"]
[Date "2026.05.28"]
[Round "4"]
[White "Donghvani, Nia"]
[Black "Ashotia, Barbare"]
[Result "1/2-1/2"]
[Board "66"]
[TimeControl "5400+30"]
[WhiteFideId "13614649"]
[BlackFideId "13625187"]
[WhiteElo "2117"]
[BlackElo "1913"]
[WhiteTitle "WFM"]
[WhiteClock "0:29:18"]
[BlackClock "0:02:25"]
[Variant "Standard"]

1. Nf3 {[%clk 1:30:34]}  c5 {[%clk 1:30:39]} 2. c4 {[%clk 1:27:20]}  Nc6 {[%clk 1:30:46]} 3. Nc3 {[%clk 1:27:24]}  Nf6 {[%clk 1:30:56]}
4. g3 {[%clk 1:22:40]}  g6 {[%clk 1:30:06]} 5. Bg2 {[%clk 1:15:55]}  Bg7 {[%clk 1:26:06]} 6. d4 {[%clk 1:12:38]}  cxd4 {[%clk 1:23:19]}
7. Nxd4 {[%clk 1:13:04]}  O-O {[%clk 1:21:42]} 8. O-O {[%clk 1:03:57]}  a6 {[%clk 1:13:21]} 9. Nc2 {[%clk 0:59:50]}  d6 {[%clk 1:07:18]}
10. b3 {[%clk 0:44:56]}  Be6 {[%clk 0:53:14]} 11. Bb2 {[%clk 0:42:26]}  Rb8 {[%clk 0:45:04]} 12. Nd5 {[%clk 0:32:58]}  Nxd5 {[%clk 0:41:21]}
13. Bxg7 {[%clk 0:33:24]}  Ne3 {[%clk 0:41:44]} 14. Nxe3 {[%clk 0:33:20]}  Kxg7 {[%clk 0:42:08]} 15. Nd5 {[%clk 0:32:46]}  Qc8 {[%clk 0:34:40]}
16. Nf4 {[%clk 0:28:37]}  Bd7 {[%clk 0:33:46]} 17. Qd2 {[%clk 0:26:06]}  Rd8 {[%clk 0:24:43]} 18. h4 {[%clk 0:25:31]}  f6 {[%clk 0:22:15]}
19. Kh2 {[%clk 0:20:33]}  Rf8 {[%clk 0:17:29]} 20. Rac1 {[%clk 0:19:29]}  Qe8 {[%clk 0:15:51]} 21. Nd5 {[%clk 0:12:11]}  Ne5 {[%clk 0:15:02]}
22. Kg1 {[%clk 0:11:45]}  Qf7 {[%clk 0:13:36]} 23. e4 {[%clk 0:07:45]}  h5 {[%clk 0:10:24]} 24. f4 {[%clk 0:07:25]}  Ng4 {[%clk 0:10:16]}
25. Ne3 {[%clk 0:05:49]}  Nxe3 {[%clk 0:07:03]} 26. Qxe3 {[%clk 0:06:18]}  Bc6 {[%clk 0:06:24]} 27. e5 {[%clk 0:04:10]}  dxe5 {[%clk 0:04:55]}
28. fxe5 {[%clk 0:04:17]}  Bxg2 {[%clk 0:05:00]} 29. Kxg2 {[%clk 0:04:31]}  f5 {[%clk 0:04:21]} 30. Rcd1 {[%clk 0:03:15]}  Rbd8 {[%clk 0:04:27]}
31. Qf3 {[%clk 0:01:08]}  Qe6 {[%clk 0:03:04]} 32. Qxb7 {[%clk 0:00:57]}  Rxd1 {[%clk 0:03:27]} 33. Rxd1 {[%clk 0:01:15]}  Qxe5 {[%clk 0:03:53]}
34. Qf3 {[%clk 0:01:01]}  Rf6 {[%clk 0:03:19]} 35. Rd2 {[%clk 0:00:52]}  f4 {[%clk 0:02:01]} 36. Re2 {[%clk 0:01:10]}  Qd6 {[%clk 0:02:19]}
37. Rf2 {[%clk 0:00:39]}  fxg3 {[%clk 0:02:22]} 38. Qxg3 {[%clk 0:01:04]}  Qc6+ {[%clk 0:02:00]} 39. Kh2 {[%clk 0:01:12]}  Rxf2+ {[%clk 0:02:21]}
40. Qxf2 {[%clk 0:01:39]}  Qe4 {[%clk 0:02:25]} 41. Kg1 {[%clk 0:29:18]} 1/2-1/2

[Event "2026 European Womens Championship"]
[Site "Batumi, GE"]
[Date "2026.05.28"]
[Round "4"]
[White "Lomaia, Diana"]
[Black "Kalandadze, Mariam"]
[Result "0-1"]
[Board "67"]
[TimeControl "5400+30"]
[WhiteFideId "13612476"]
[BlackFideId "13621122"]
[WhiteElo "2110"]
[BlackElo "1892"]
[WhiteTitle "WFM"]
[WhiteClock "0:29:56"]
[BlackClock "0:32:24"]
[Variant "Standard"]

1. d4 {[%clk 1:30:57]}  Nf6 {[%clk 1:30:48]} 2. c4 {[%clk 1:31:20]}  c5 {[%clk 1:31:09]} 3. d5 {[%clk 1:27:30]}  b5 {[%clk 1:31:11]}
4. Qc2 {[%clk 1:27:43]}  bxc4 {[%clk 1:28:47]} 5. e4 {[%clk 1:27:58]}  d6 {[%clk 1:28:20]} 6. Bxc4 {[%clk 1:28:21]}  g6 {[%clk 1:27:52]}
7. f4 {[%clk 1:24:42]}  Bg7 {[%clk 1:25:50]} 8. Nf3 {[%clk 1:24:22]}  O-O {[%clk 1:25:22]} 9. O-O {[%clk 1:24:20]}  Ba6 {[%clk 1:22:20]}
10. Nbd2 {[%clk 1:23:33]}  Bxc4 {[%clk 1:15:16]} 11. Nxc4 {[%clk 1:23:32]}  Na6 {[%clk 1:15:23]} 12. a3 {[%clk 1:20:57]}  Nc7 {[%clk 1:14:41]}
13. Rd1 {[%clk 1:17:11]}  Qc8 {[%clk 1:05:33]} 14. h3 {[%clk 1:14:14]}  Rd8 {[%clk 1:05:20]} 15. Bd2 {[%clk 0:56:41]}  e6 {[%clk 0:57:16]}
16. e5 {[%clk 0:47:22]}  dxe5 {[%clk 0:49:15]} 17. d6 {[%clk 0:46:33]}  Nb5 {[%clk 0:40:03]} 18. fxe5 {[%clk 0:42:54]}  Nd5 {[%clk 0:38:43]}
19. a4 {[%clk 0:25:32]}  Nd4 {[%clk 0:38:30]} 20. Nxd4 {[%clk 0:24:14]}  cxd4 {[%clk 0:38:54]} 21. Qd3 {[%clk 0:22:39]}  f6 {[%clk 0:30:39]}
22. Rac1 {[%clk 0:16:48]}  Qd7 {[%clk 0:28:59]} 23. Qxd4 {[%clk 0:15:12]}  fxe5 {[%clk 0:26:45]} 24. Qg4 {[%clk 0:14:52]}  Nf6 {[%clk 0:19:50]}
25. Qe2 {[%clk 0:12:45]}  Nd5 {[%clk 0:15:33]} 26. b3 {[%clk 0:08:49]}  Rab8 {[%clk 0:12:08]} 27. Bg5 {[%clk 0:08:07]}  Rf8 {[%clk 0:09:31]}
28. Rf1 {[%clk 0:01:45]}  Rxf1+ {[%clk 0:06:24]} 29. Rxf1 {[%clk 0:02:12]}  h6 {[%clk 0:04:09]} 30. Bd2 {[%clk 0:01:51]}  Rxb3 {[%clk 0:03:56]}
31. Nxe5 {[%clk 0:01:38]}  Qxd6 {[%clk 0:04:21]} 32. Nxg6 {[%clk 0:01:26]}  Qb6+ {[%clk 0:01:33]} 33. Kh1 {[%clk 0:01:36]}  Rb1 {[%clk 0:01:46]}
34. Be1 {[%clk 0:00:37]}  Qe3 {[%clk 0:00:35]} 35. Ne7+ {[%clk 0:01:00]}  Kh8 {[%clk 0:00:56]} 36. Qc2 {[%clk 0:00:50]}  Rc1 {[%clk 0:00:59]}
37. Nxd5 {[%clk 0:00:34]}  exd5 {[%clk 0:01:24]} 38. Qf5 {[%clk 0:00:34]}  Rxe1 {[%clk 0:01:36]} 39. Qc8+ {[%clk 0:00:44]}  Qe8 {[%clk 0:02:02]}
40. Qf5 {[%clk 0:00:34]}  Rxf1+ {[%clk 0:02:20]} 41. Qxf1 {[%clk 0:01:03]}  Qxa4 {[%clk 0:02:40]} 42. Qd3 {[%clk 0:29:56]}  Qe4 {[%clk 0:32:24]} 0-1

[Event "2026 European Womens Championship"]
[Site "Batumi, GE"]
[Date "2026.05.28"]
[Round "4"]
[White "Mkrtchyan, Anahit H."]
[Black "Nahapetyan, Ani"]
[Result "1/2-1/2"]
[Board "68"]
[TimeControl "5400+30"]
[WhiteFideId "13314858"]
[BlackFideId "13317776"]
[WhiteElo "2107"]
[BlackElo "1827"]
[WhiteClock "0:02:36"]
[BlackClock "0:45:32"]
[Variant "Standard"]

1. e4 {[%clk 1:30:55]}  e6 {[%clk 1:30:53]} 2. d4 {[%clk 1:31:18]}  d5 {[%clk 1:31:19]} 3. Nc3 {[%clk 1:31:43]}  Nf6 {[%clk 1:31:42]}
4. e5 {[%clk 1:32:08]}  Nfd7 {[%clk 1:32:06]} 5. f4 {[%clk 1:32:33]}  c5 {[%clk 1:32:30]} 6. Nf3 {[%clk 1:32:59]}  Nc6 {[%clk 1:32:52]}
7. Be3 {[%clk 1:33:24]}  a6 {[%clk 1:33:16]} 8. a4 {[%clk 1:24:31]}  Qb6 {[%clk 1:27:48]} 9. Qd2 {[%clk 0:58:48]}  Qxb2 {[%clk 1:14:03]}
10. Rb1 {[%clk 0:57:41]}  Qa3 {[%clk 1:14:23]} 11. Rb3 {[%clk 0:49:07]}  Qa1+ {[%clk 1:14:45]} 12. Kf2 {[%clk 0:48:07]}  cxd4 {[%clk 1:06:51]}
13. Nxd4 {[%clk 0:45:56]}  Nc5 {[%clk 1:01:51]} 14. Nxc6 {[%clk 0:23:58]}  Nxb3 {[%clk 0:58:10]} 15. cxb3 {[%clk 0:23:54]}  bxc6 {[%clk 0:55:44]}
16. Bb5 {[%clk 0:22:54]}  Qxh1 {[%clk 0:53:44]} 17. Bxc6+ {[%clk 0:22:09]}  Bd7 {[%clk 0:51:26]} 18. Bxd7+ {[%clk 0:19:51]}  Kxd7 {[%clk 0:51:08]}
19. Nxd5 {[%clk 0:19:27]}  exd5 {[%clk 0:49:03]} 20. Qxd5+ {[%clk 0:19:52]}  Kc7 {[%clk 0:47:40]} 21. Qxf7+ {[%clk 0:18:30]}  Kb8 {[%clk 0:45:25]}
22. Qe8+ {[%clk 0:18:33]}  Kb7 {[%clk 0:45:26]} 23. Qd7+ {[%clk 0:18:53]}  Kb8 {[%clk 0:45:51]} 24. Qd8+ {[%clk 0:19:10]}  Kb7 {[%clk 0:46:15]}
25. Qb6+ {[%clk 0:07:21]}  Kc8 {[%clk 0:46:27]} 26. Qc6+ {[%clk 0:06:15]}  Kb8 {[%clk 0:45:16]} 27. Bb6 {[%clk 0:02:03]}  Ra7 {[%clk 0:44:11]}
28. Bxa7+ {[%clk 0:01:56]}  Kxa7 {[%clk 0:44:37]} 29. Qc7+ {[%clk 0:02:13]}  Ka8 {[%clk 0:45:04]} 30. Qc8+ {[%clk 0:02:36]}  Ka7 {[%clk 0:45:32]} 1/2-1/2